bitfinex-derivatives/quotes_ETHF0:USTF0_20250422
["timestamp","ask_amount","ask_price","bid_price","bid_amount"]
[1745359722287,1.14164,1751.3,1751.2,6.33054798]
[1745359722489,10.78484,1751.3,1751.2,6.33054798]
[1745359723084,1.14164,1751.3,1751.2,0.00854798]
[1745359723489,12.3098,1751.4,1751.2,0.00854798]
[1745359724093,1.14164,1751.3,1751.2,6.33054798]
[1745359725285,1.14164,1751.3,1751.2,0.00854798]
[1745359726088,5.78484,1751.3,1751.2,0.00854798]
[1745359727587,10.78484,1751.3,1751.2,0.00854798]
[1745359727990,5.78484,1751.3,1751.2,0.00854798]
[1745359728193,1.14164,1751.3,1751.2,0.00854798]
[1745359728590,5.78324,1751.3,1751.2,0.00854798]
[1745359732391,1.14164,1751.3,1751.2,0.00854798]
[1745359733293,1.14164,1751.3,1751.2,6.33054798]
[1745359733489,10.59326842,1751.3,1751.2,6.33054798]
[1745359733795,9.45162842,1751.3,1751.2,6.33054798]
[1745359733997,10.59326842,1751.3,1751.2,6.33054798]
[1745359734190,9.45162842,1751.3,1751.2,6.33054798]
[1745359734390,9.45162842,1751.3,1751.2,12.47224798]
[1745359734585,9.102,1751.4,1751.2,17.41784798]
[1745359734794,9.102,1751.4,1751.2,21.10264798]
[1745359734993,10.24522,1752.0,1751.2,27.16468798]
[1745359735193,1.14126,1751.9,1751.2,19.31044798]
[1745359735392,1.14126,1751.9,1751.5,1.1415]
[1745359735591,10.24523,1752.0,1751.5,1.1415]
[1745359735791,10.24522,1752.0,1751.5,1.14146]
[1745359735987,1.14133,1751.8,1751.4,4.34935]
[1745359736193,9.104,1752.0,1751.4,4.34935]
[1745359736194,9.104,1752.0,1751.5,1.14149]
[1745359736395,9.104,1752.0,1751.4,10.67133]
[1745359736698,1.14133,1751.8,1751.4,10.67134]
[1745359737396,9.104,1752.0,1751.6,1.14142]
[1745359737397,10.24524,1752.0,1751.6,1.14142]
[1745359737800,10.24524,1752.0,1751.7,5.6291]
[1745359737990,1.14125,1751.9,1751.7,5.6291]
[1745359738298,1.14125,1751.9,1751.7,11.9511]
[1745359738799,1.14131,1751.8,1751.7,11.9511]
[1745359738994,4.34911,1751.8,1751.7,11.9511]
[1745359739297,6.06115,1751.8,1751.2,9.78064798]
[1745359739496,1.14146,1751.6,1751.2,9.78064798]
[1745359739895,5.9849,1751.7,1751.2,9.78064798]
[1745359740100,1.14157,1751.4,1751.2,16.10264798]
[1745359740404,1.14156,1751.5,1751.2,16.10264798]
[1745359740592,5.9849,1751.7,1751.2,17.24431798]
[1745359740794,1.14149,1751.6,1751.2,16.10264798]
[1745359741194,1.14151,1751.5,1751.2,16.10264798]
[1745359741394,1.14147,1751.6,1751.2,17.24434798]
[1745359741594,1.14151,1751.5,1751.2,16.10264798]
[1745359741790,1.14148,1751.6,1751.2,17.24432798]
[1745359741995,7.12629,1751.7,1751.2,17.24432798]
[1745359742704,5.9849,1751.7,1751.3,5.6108]
[1745359742899,7.1263,1751.7,1751.3,5.6108]
[1745359743204,4.34913,1751.8,1751.3,11.9328]
[1745359743398,4.34913,1751.8,1751.3,13.0744]
[1745359743399,3.2078,1751.8,1751.3,13.0744]
[1745359743602,4.34914,1751.8,1751.4,5.6108]
[1745359744198,4.34914,1751.8,1751.4,11.9328]
[1745359744795,4.34912,1751.8,1751.4,11.9328]
[1745359745395,3.2078,1751.8,1751.5,4.34926]
[1745359745598,1.14125,1751.9,1751.6,5.5663]
[1745359745801,3.2078,1751.8,1751.6,5.5663]
[1745359746303,1.14138,1751.7,1751.6,5.5663]
[1745359746502,3.2078,1751.8,1751.6,5.5663]
[1745359746704,1.14138,1751.7,1751.6,5.5663]
[1745359746901,6.78328,1751.7,1751.6,5.5663]
[1745359747598,1.14138,1751.7,1751.6,5.5663]
[1745359748101,3.2078,1751.8,1751.6,5.5663]
[1745359748804,4.34912,1751.8,1751.6,5.5663]
[1745359749003,1.14138,1751.7,1751.6,5.5663]
[1745359749303,3.2078,1751.8,1751.6,5.5663]
[1745359749504,1.14138,1751.7,1751.6,5.5663]
[1745359750093,3.2078,1751.8,1751.6,5.5663]
[1745359750305,12.3118,1752.0,1751.6,5.5663]
[1745359750498,1.14138,1751.7,1751.6,5.5663]
[1745359750696,4.34918,1751.7,1751.6,5.5663]
[1745359750895,1.14138,1751.7,1751.6,5.5663]
[1745359751496,4.34918,1751.7,1751.6,5.5663]
[1745359752198,9.98378,1751.7,1751.6,5.5663]
[1745359753795,8.8424,1751.7,1751.2,9.78064798]
[1745359753998,1.14157,1751.4,1751.3,6.067]
[1745359754204,4.34937,1751.4,1751.3,6.067]
[1745359754501,20.12189,1751.4,1750.7,11.5857]
[1745359754701,4.3497,1750.9,1750.8,6.067]
[1745359754902,1.14196,1750.8,1750.7,2.7925392]
[1745359755109,15.98836,1750.8,1750.7,2.48351357]
[1745359755300,19.8464,1750.8,1750.2,6.067]
[1745359755501,1.14218,1750.5,1750.2,6.067]
[1745359755809,1.14216,1750.5,1750.3,0.00854798]
[1745359756005,3.2078,1750.6,1750.3,0.00854798]
[1745359756210,4.34994,1750.6,1750.3,0.00854798]
[1745359756705,3.2078,1750.6,1750.3,0.00854798]
[1745359756905,1.14229,1750.3,1750.2,6.31346]
[1745359757206,74.83905,1750.4,1750.0,6.1061]
[1745359757408,3.2078,1750.1,1749.8,7.34265898]
[1745359757609,3.2078,1750.1,1749.9,6.1061]
[1745359758103,9.061,1750.2,1749.9,13.57065]
[1745359758302,9.061,1750.2,1749.9,18.44995]
[1745359758501,9.061,1750.2,1749.9,17.3074]
[1745359758705,9.061,1750.2,1749.9,12.4281]
[1745359759110,10.20338,1750.2,1749.9,12.4281]
[1745359759607,1.14249,1750.0,1749.9,12.4281]
[1745359760010,1.14249,1750.0,1749.9,6.322]
[1745359760306,1.14255,1749.9,1749.8,0.00854798]
[1745359760508,4.35035,1749.9,1749.8,0.00854798]
[1745359761007,1.14277,1749.6,1749.4,5.6997]
[1745359761311,3.2078,1749.7,1749.4,5.6997]
[1745359761507,3.2078,1750.1,1749.4,8.9075]
[1745359761811,3.2078,1750.3,1750.0,1.14245]
[1745359762006,3.2078,1750.3,1750.1,5.6997]
[1745359762199,3.2078,1751.0,1750.2,4.8128]
[1745359762407,70.515,1751.1,1750.5,3.2078]
[1745359762706,70.515,1751.1,1750.6,5.6997]
[1745359763110,1.14185,1751.0,1750.6,11.81156]
[1745359763409,71.65681,1751.1,1750.7,5.722]
[1745359763603,1.15041314,1751.0,1750.7,5.722]
[1745359763909,1.15043314,1751.0,1750.7,5.722]
[1745359764103,1.14196,1750.8,1750.7,12.044]
[1745359764911,0.00857314,1751.0,1750.7,12.044]
[1745359765113,1.15044314,1751.0,1750.7,12.044]
[1745359765410,0.00857314,1751.0,1750.7,12.044]
[1745359765801,0.00857314,1751.0,1750.7,13.18601]
[1745359766004,3.2078,1750.9,1750.7,12.044]
[1745359766205,3.2078,1750.9,1750.6,0.00857314]
[1745359766512,4.34983,1750.7,1750.6,0.00857314]
[1745359766713,9.064,1750.7,1750.6,0.00857314]
[1745359766914,13.41383,1750.7,1750.6,0.00857314]
[1745359767207,1.14238,1750.2,1749.6,4.35052]
[1745359767405,4.35018,1750.2,1750.1,5.509]
[1745359767605,3.2078,1750.2,1750.1,5.509]
[1745359767809,4.35016,1750.2,1750.1,5.509]
[1745359768008,10.35846,1750.2,1750.1,5.509]
[1745359768206,9.2161,1750.2,1749.8,1.14259]
[1745359768400,9.014,1750.1,1750.0,0.00857314]
[1745359769213,10.15642,1750.1,1750.0,0.00857314]
[1745359769512,15.89912,1750.1,1750.0,0.00857314]
[1745359769911,20.89912,1750.1,1750.0,0.00857314]
[1745359770109,1.14262,1749.8,1749.4,5.5224]
[1745359770315,3.2078,1749.8,1749.4,5.5224]
[1745359770714,1.14268,1749.7,1749.4,5.5224]
[1745359770908,3.2078,1749.8,1749.4,5.5224]
[1745359771108,3.2078,1749.8,1749.4,11.8444]
[1745359771308,3.2078,1749.8,1749.4,12.9929994]
[1745359771505,4.35044,1749.8,1749.4,6.3277494]
[1745359771709,8.9505,1749.8,1749.5,5.5224]
[1745359771910,10.09318,1749.8,1749.5,5.5224]
[1745359772108,8.9505,1749.8,1749.5,6.322]
[1745359772313,4.35055,1749.6,1749.5,6.322]
[1745359772519,3.2078,1749.6,1749.5,6.322]
[1745359772716,4.35055,1749.6,1749.5,6.322]
[1745359772914,8.9505,1749.8,1749.5,11.9941]
[1745359773310,8.9505,1749.8,1749.5,6.322]
[1745359773311,3.2078,1749.8,1749.5,6.322]
[1745359773513,5.7777,1749.7,1749.5,6.322]
[1745359773712,3.2078,1749.8,1749.6,5.6721]
[1745359774213,4.35042,1749.8,1749.6,5.6721]
[1745359774520,3.2078,1749.8,1749.6,5.6721]
[1745359774813,3.2078,1750.0,1749.6,5.6721]
[1745359775016,4.3503,1750.0,1749.6,5.6721]
[1745359775220,1.14275,1749.6,1749.5,6.322]
[1745359775417,4.35055,1749.6,1749.5,6.322]
[1745359775612,9.35055,1749.6,1749.5,6.322]
[1745359775814,9.44849199,1749.6,1749.5,6.322]
[1745359776216,9.44849199,1749.6,1748.5,10.021]
[1745359776217,3.2078,1748.7,1748.0,0.46746887]
[1745359776417,8.57308,1749.1,1747.5,5.7679]
[1745359776418,1.14382,1748.0,1747.5,5.7679]
[1745359776720,3.2078,1747.9,1747.5,5.7679]
[1745359776917,3.2078,1748.1,1747.6,5.1164]
[1745359777113,3.2078,1747.9,1747.7,5.7679]
[1745359777520,3.2078,1747.9,1747.7,10.7679]
[1745359777714,0.00857314,1748.0,1747.7,10.7679]
[1745359777924,3.21637314,1748.0,1747.7,5.7679]
[1745359778422,3.21637314,1748.0,1747.7,12.0899]
[1745359778722,4.35172,1747.8,1747.7,12.0899]
[1745359779317,4.35172,1747.8,1747.7,6.322]
[1745359779518,9.35172,1747.8,1747.7,6.322]
[1745359779718,4.35172,1747.8,1747.7,6.322]
[1745359779921,4.35172,1747.8,1746.5,1.14473]
[1745359779922,1.14434,1747.2,1746.5,1.14473]
[1745359780120,1.14434,1747.2,1746.1,2.8626]
[1745359780121,3.2078,1746.9,1746.8,5.5]
[1745359780535,3.2078,1746.9,1746.8,10.5]
[1745359780729,0.00857314,1747.0,1746.8,10.5]
[1745359780932,3.2078,1747.6,1747.5,1.14412]
[1745359781137,3.2078,1748.0,1747.5,11.322]
[1745359781434,3.2078,1748.3,1747.9,3.2078]
[1745359781832,1.14373,1748.1,1748.0,5.8912]
[1745359782134,1.14379,1748.0,1747.9,0.00857314]
[1745359782338,5.6631,1748.2,1747.9,0.00857314]
[1745359782534,9.024,1748.1,1747.9,0.00857314]
[1745359782837,1.14379,1748.0,1747.9,0.00857314]
[1745359783036,1.14406,1747.6,1747.3,3.2078]
[1745359783240,9.024,1747.5,1747.3,3.2078]
[1745359783432,14.6871,1747.5,1747.3,3.2078]
[1745359783836,9.024,1747.5,1747.4,5.8912]
[1745359784232,9.024,1747.5,1747.4,12.2132]
[1745359784838,10.16812,1747.5,1747.4,12.2132]
[1745359785040,9.024,1747.5,1747.4,12.2132]
[1745359785231,10.16812,1747.5,1747.4,6.322]
[1745359785839,12.2318,1747.5,1746.8,9.1282]
[1745359786036,7.15603,1747.4,1747.2,5.9204]
[1745359786230,1.15282314,1747.3,1747.2,5.9204]
[1745359786431,0.00857314,1747.3,1746.7,8.4976]
[1745359786632,7.15615,1747.2,1747.0,3.2078]
[1745359786830,1.14439,1747.1,1746.9,3.2078]
[1745359787032,1.14439,1747.1,1746.8,5.9204]
[1745359787033,0.00857314,1747.3,1747.2,1.14432]
[1745359787232,3.2078,1748.3,1747.3,2.86063]
[1745359787438,3.2078,1748.3,1747.8,3.2078]
[1745359787738,2.85933,1748.1,1747.4,5.7455]
[1745359787928,1.14412,1747.5,1747.4,5.7455]
[1745359788128,1.14419,1747.4,1747.3,3.2078]
[1745359788335,10.17219,1747.4,1747.3,0.00857314]
[1745359788737,15.73809,1747.4,1747.3,0.00857314]
[1745359789340,14.5939,1747.4,1747.3,6.33057314]
[1745359789542,9.028,1747.4,1747.3,6.33057314]
[1745359789745,15.73809,1747.4,1747.3,6.33057314]
[1745359790241,15.73809,1747.4,1747.3,0.00857314]
[1745359790941,19.0456274,1747.4,1747.3,0.00857314]
[1745359791138,18.94589,1747.4,1747.3,6.33057314]
[1745359791342,19.04562777,1747.4,1747.3,6.33057314]
[1745359791538,24.04562777,1747.4,1747.3,6.33057314]
[1745359791743,1.1444,1747.1,1746.7,4.9242]
[1745359792043,1.14453,1746.9,1746.6,3.2078]
[1745359792251,1.14472,1746.6,1746.4,5.6448]
[1745359792445,9.029,1746.8,1746.4,8.8526]
[1745359792632,3.2078,1746.9,1746.4,13.8526]
[1745359792834,0.00857314,1746.8,1746.4,13.8526]
[1745359793044,0.00857314,1746.8,1746.4,8.8526]
[1745359793241,0.00857314,1746.8,1746.4,15.1746]
[1745359793442,0.00857314,1746.8,1746.4,16.31941]
[1745359793641,0.00857314,1746.8,1746.4,15.1746]
[1745359793846,1.14478,1746.5,1746.4,6.322]
[1745359794140,0.00857314,1746.8,1746.4,8.2078]
[1745359794341,0.00857314,1746.8,1746.7,3.2078]
[1745359794540,0.00857314,1746.8,1746.7,9.35244]
[1745359794740,0.00857314,1746.8,1746.7,3.2078]
[1745359794949,0.00857314,1746.8,1746.7,9.0925]
[1745359795144,0.00857314,1746.8,1746.7,21.55914]
[1745359795339,3.2078,1747.3,1746.7,20.4145]
[1745359795539,3.2078,1747.3,1747.0,1.14439]
[1745359795744,3.2078,1747.3,1747.1,5.8847]
[1745359796139,4.35205,1747.3,1747.1,5.8847]
[1745359796446,3.2078,1747.3,1747.0,6.322]
[1745359796642,3.2078,1747.3,1747.1,5.4918]
[1745359796840,1.14432,1747.2,1747.1,5.4918]
[1745359797246,0.00857314,1747.4,1747.1,10.4918]
[1745359797448,70.649,1747.8,1747.3,4.35203]
[1745359797645,71.79292,1747.8,1747.7,3.2078]
[1745359797846,1.1439,1747.9,1747.7,3.2078]
[1745359798043,1.1439,1747.9,1747.8,5.4918]
[1745359798343,9.031,1748.0,1747.5,4.3519]
[1745359798344,1.14392,1747.8,1747.7,6.322]
[1745359798548,6.0841,1747.8,1747.7,6.322]
[1745359798741,7.22802,1747.8,1747.7,6.322]
[1745359799137,1.14408,1747.6,1747.3,8.6996]
[1745359799346,7.22807,1747.8,1747.4,5.4918]
[1745359799647,6.0841,1747.8,1747.4,5.4918]
[1745359799843,7.22804,1747.8,1747.4,6.63597]
[1745359800037,7.22804,1747.8,1747.4,5.4918]
[1745359800241,6.0841,1747.8,1747.4,11.8138]
[1745359800442,1.14412,1747.5,1747.4,11.8138]
[1745359800748,6.0841,1747.8,1747.4,15.0216]
[1745359801042,3.2078,1747.7,1747.4,11.8138]
[1745359801249,3.2078,1747.5,1747.0,0.00857314]
[1745359801551,14.8751,1747.4,1747.1,1.14433]
[1745359801739,8.985,1747.4,1747.2,5.8998]
[1745359802243,8.985,1747.4,1747.2,7.04411]
[1745359802445,3.2078,1747.5,1747.2,5.8998]
[1745359802748,0.00857314,1748.0,1747.5,1.14409]
[1745359802946,0.00857314,1748.0,1747.6,5.7443]
[1745359803153,0.00857314,1748.0,1747.7,1.14396]
[1745359803352,1.14386,1747.9,1747.8,5.7443]
[1745359803550,0.00857314,1748.0,1747.9,1.14386]
[1745359803739,3.2078,1748.5,1747.9,3.2078]
[1745359803945,3.2078,1748.5,1748.0,5.7443]
[1745359804146,4.35153,1748.1,1748.0,5.7443]
[1745359804548,1.14406,1747.6,1747.2,3.2078]
[1745359804747,8.985,1747.6,1747.3,5.7443]
[1745359805151,8.985,1747.6,1747.4,1.14414]
[1745359805352,8.985,1747.6,1747.5,5.7443]
[1745359805850,10.12906,1747.6,1747.5,5.7443]
[1745359806157,15.97706,1747.6,1747.5,12.0663]
[1745359806353,15.97706,1747.6,1747.5,6.322]
[1745359806654,24.18486,1747.6,1747.5,4.03428058]
[1745359807249,1.14419,1747.4,1747.3,0.00857314]
[1745359807745,3.2078,1747.4,1747.3,0.00857314]
[1745359807947,4.35199,1747.4,1747.3,0.00857314]
[1745359808150,9.35199,1747.4,1747.3,0.00857314]
[1745359808357,9.35199,1747.4,1746.4,6.0261]
[1745359808358,2.8608,1747.2,1746.4,6.0261]
[1745359808655,3.2078,1746.6,1746.0,5.0309]
[1745359808846,8.985,1746.6,1746.3,5.5469]
[1745359809253,5.9471,1746.5,1746.3,5.5469]
[1745359809553,5.9471,1746.5,1746.3,5.55547314]
[1745359809959,7.0919,1746.5,1746.3,5.55547314]
[1745359810161,7.0919,1746.5,1746.3,11.87747314]
[1745359810456,7.0919,1746.5,1746.3,6.33057314]
[1745359810457,4.35264,1746.4,1746.3,6.33057314]
[1745359810857,9.35264,1746.4,1746.3,4.65347314]
[1745359811154,1.1451,1746.0,1745.9,0.21758819]
[1745359811351,8.986,1746.0,1745.9,0.21758819]
[1745359811549,10.1311,1746.0,1745.9,0.21758819]
[1745359811753,1.14532,1745.7,1745.3,9.1529]
[1745359811959,1.14543,1745.5,1745.4,5.9451]
[1745359812158,9.88809,1745.6,1745.4,5.9451]
[1745359812358,6.68886314,1745.6,1745.4,5.9451]
[1745359812655,1.1455,1745.4,1745.3,6.33057314]
[1745359812961,10.1315,1745.4,1745.3,6.33057314]
[1745359813259,8.7427,1745.5,1745.3,6.33057314]
[1745359813552,0.00857314,1745.6,1745.3,5.00857314]
[1745359813747,0.00857314,1745.6,1745.5,1.14543]
[1745359813943,0.00857314,1745.6,1745.4,9.1529]
[1745359814144,0.00857314,1745.6,1745.4,20.4749]
[1745359814349,70.664,1746.4,1745.4,20.4749]
[1745359814552,1.14491,1746.3,1745.8,3.2078]
[1745359814752,1.14513,1746.0,1745.4,10.67527]
[1745359814947,1.14524,1745.8,1745.4,9.5298]
[1745359815149,3.2078,1746.6,1745.7,3.2078]
[1745359815348,1.24628942,1746.5,1745.9,4.35293]
[1745359815562,0.00857314,1746.3,1746.2,4.35277]
[1745359815862,3.2078,1746.9,1746.6,1.14469]
[1745359816053,1.14445,1747.0,1746.5,1.14474]
[1745359816253,1.14465,1746.7,1746.5,6.322]
[1745359816453,1.14447,1747.0,1746.5,7.46674]
[1745359816754,3.2078,1746.9,1746.5,6.322]
[1745359817061,1.14464,1746.7,1746.6,0.00857314]
[1745359817261,1.14471,1746.6,1746.5,6.322]
[1745359817554,6.66011,1746.6,1746.5,6.322]
[1745359818059,8.989,1746.7,1746.5,6.322]
[1745359818561,8.989,1746.7,1746.6,6.0823]
[1745359819456,8.989,1746.7,1746.5,6.322]
[1745359819664,8.989,1746.7,1746.6,6.0823]
[1745359820054,16.03375,1746.7,1746.5,6.322]
[1745359820254,8.989,1746.7,1746.5,6.322]
[1745359820456,8.989,1746.7,1746.6,6.0823]
[1745359820657,8.989,1746.7,1746.6,11.0823]
[1745359820961,8.989,1746.7,1746.6,12.22701]
[1745359821157,8.989,1746.7,1746.6,11.0823]
[1745359821362,8.989,1746.7,1746.6,6.0823]
[1745359821864,8.989,1746.7,1746.5,6.322]
[1745359822062,1.14471,1746.6,1746.5,6.322]
[1745359822258,7.03171,1746.6,1746.5,6.322]
[1745359822460,15.34097022,1746.6,1746.5,6.322]
[1745359822762,10.34097414,1746.6,1746.5,6.322]
[1745359822965,10.34097414,1746.6,1745.5,3.2078]
[1745359822966,17.05820414,1746.6,1745.5,3.2078]
[1745359823163,1.14518,1745.9,1745.5,3.2078]
[1745359823469,8.99,1745.9,1745.6,5.5856]
[1745359823861,14.7495,1746.4,1745.8,3.2078]
[1745359824066,8.99,1746.4,1746.0,3.2078]
[1745359824254,0.00857314,1746.3,1746.2,3.2078]
[1745359824460,0.00857314,1746.3,1746.2,9.35277]
[1745359824659,0.00857314,1746.3,1746.2,8.2078]
[1745359825165,0.00857314,1746.3,1746.2,14.5298]
[1745359825361,3.2078,1746.7,1746.2,14.5298]
[1745359825567,1.14458,1746.8,1746.4,3.2078]
[1745359825868,1.14435,1747.2,1746.6,3.2078]
[1745359826061,8.99,1747.4,1746.8,3.2078]
[1745359826062,1.14442,1747.1,1746.8,3.2078]
[1745359826261,14.7495,1747.4,1746.8,3.2078]
[1745359826459,14.7495,1747.4,1746.4,6.322]
[1745359826460,3.2078,1747.1,1746.4,6.322]
[1745359826661,3.2078,1747.1,1746.4,6.31342686]
[1745359826662,4.35258,1746.5,1746.4,6.31342686]
[1745359826861,12.1978,1746.5,1745.9,3.2078]
[1745359827172,1.14494,1746.3,1745.9,3.2078]
[1745359827466,12.1978,1746.5,1746.1,3.2078]
[1745359827663,8.99,1746.5,1746.4,3.2078]
[1745359827965,0.00857314,1746.5,1746.4,3.2078]
[1745359828163,73.8988,1747.6,1746.4,14.5298]
[1745359828365,3.2078,1747.2,1746.8,3.2078]
[1745359828673,1.14471,1746.6,1746.5,13.1642]
[1745359828869,1.14478,1746.5,1746.4,6.322]
[1745359830081,0.00857314,1746.6,1746.4,6.322]
[1745359830370,0.00857314,1746.6,1746.5,3.2078]
[1745359830865,0.00857314,1746.6,1746.5,4.35258]
[1745359831066,0.00857314,1746.6,1746.4,6.322]
[1745359831271,1.15331314,1746.6,1746.5,6.322]
[1745359831568,0.00857314,1746.6,1746.5,6.322]
[1745359832359,0.00857314,1746.6,1746.5,12.46678]
[1745359832564,0.00857314,1746.6,1746.5,15.67458]
[1745359832972,8.949,1747.1,1746.8,1.14455]
[1745359833272,1.14447,1747.0,1746.6,3.2078]
[1745359833471,8.949,1747.1,1746.6,3.2078]
[1745359833673,15.93794,1747.1,1746.6,4.35248]
[1745359833971,1.15307314,1747.0,1746.6,4.35251]
[1745359834169,1.15307314,1747.0,1746.6,3.2078]
[1745359834477,0.00857314,1747.0,1746.6,4.35251]
[1745359834771,0.00857314,1747.0,1746.6,3.2078]
[1745359834970,82.8478,1747.6,1746.8,6.06921]
[1745359835175,14.2015341,1748.0,1747.3,4.35202]
[1745359835367,6.16884281,1747.9,1747.1,3.2078]
[1745359835571,11.91196,1747.9,1747.3,3.2078]
[1745359835770,1.14413,1747.5,1747.3,3.2078]
[1745359836076,1.15266314,1747.6,1747.3,9.5298]
[1745359836269,0.00857314,1747.6,1747.4,1.14416]
[1745359836472,0.00857314,1747.6,1747.5,1.14412]
[1745359836774,0.00857314,1747.6,1747.5,3.2078]
[1745359836978,0.00857314,1747.6,1747.4,1.14417]
[1745359837276,0.00857314,1747.6,1747.4,6.322]
[1745359837875,1.15264314,1747.6,1747.4,6.322]
[1745359838073,0.00857314,1747.6,1747.4,7.46617]
[1745359838274,1.15268314,1747.6,1747.4,6.322]
[1745359838780,0.00857314,1747.6,1747.5,5.6307]
[1745359839376,0.00857314,1747.6,1747.5,11.9527]
[1745359839674,0.00857314,1747.6,1747.5,13.09682]
[1745359840181,0.00857314,1747.6,1747.5,21.30462]
[1745359840478,0.00857314,1747.6,1747.5,16.30462]
[1745359840872,0.00857314,1747.6,1747.5,15.1605]
[1745359841065,1.15263314,1747.6,1747.5,11.9527]
[1745359841576,0.00857314,1747.6,1747.5,11.9527]
[1745359841978,1.15263314,1747.6,1747.5,11.9527]
[1745359842365,0.00857314,1747.6,1747.5,11.9527]
[1745359842575,1.15263314,1747.6,1747.5,11.9527]
[1745359842781,1.15263314,1747.6,1747.5,6.30485372]
[1745359842782,9.36043314,1747.6,1747.5,6.30485372]
[1745359842977,9.46182794,1747.6,1747.5,6.30485372]
[1745359843178,1.14425,1747.3,1747.2,0.00857314]
[1745359844281,12.22046423,1747.3,1747.2,6.33057314]
[1745359844979,12.22046423,1747.3,1747.2,5.03753314]
[1745359845182,12.22046423,1747.3,1747.2,3.84556314]
[1745359845183,17.19886423,1747.3,1747.2,3.84556314]
[1745359845479,2.86082,1747.2,1746.1,1.14504]
[1745359845675,6.06915,1746.9,1746.3,5.4817]
[1745359845885,1.14484,1746.4,1746.3,5.4817]
[1745359846275,1.14491,1746.3,1746.2,0.00857314]
[1745359846876,6.24638072,1746.3,1746.2,0.00857314]
[1745359847082,6.24638072,1746.3,1746.2,6.33057314]
[1745359847285,6.24640122,1746.3,1746.2,6.33057314]
[1745359847878,0.00857314,1746.5,1746.2,6.33057314]
[1745359848081,1.15335314,1746.5,1746.3,5.4817]
[1745359848380,0.00857314,1746.5,1746.3,5.4817]
[1745359849277,0.00857314,1746.5,1746.3,11.8037]
[1745359849476,1.15335314,1746.5,1746.4,5.5095]
[1745359849677,1.14484,1746.4,1746.3,6.322]
[1745359849878,8.947,1746.4,1746.3,6.322]
[1745359850081,10.09184,1746.4,1746.3,11.8315]
[1745359850473,10.09184,1746.4,1746.3,6.322]
[1745359850474,18.40032381,1746.4,1746.3,6.322]
[1745359850677,18.40032524,1746.4,1746.3,6.322]
[1745359850987,15.19252524,1746.4,1746.3,6.322]
[1745359851184,10.19252524,1746.4,1746.3,6.322]
[1745359851482,8.947,1746.4,1746.3,12.2061]
[1745359851886,0.00857314,1746.5,1746.3,12.2061]
[1745359852185,0.00857314,1746.5,1746.4,5.8841]
[1745359852583,0.00857314,1746.5,1746.4,10.8841]
[1745359852888,0.00857314,1746.5,1746.4,14.0919]
[1745359853089,0.00857314,1746.5,1746.4,20.4139]
[1745359853391,0.00857314,1746.5,1746.4,15.4139]
[1745359853689,0.00857314,1746.5,1746.4,12.2061]
[1745359854085,1.15335314,1746.5,1746.4,12.2061]
[1745359854385,6.15335314,1746.5,1746.4,6.322]
[1745359854691,9.46182852,1746.5,1746.4,6.22050878]
[1745359855078,9.94102852,1746.5,1746.4,6.22050878]
[1745359855385,14.94102852,1746.5,1746.4,6.22050878]
[1745359855783,9.94102852,1746.5,1746.4,6.22050878]
[1745359856085,14.94102852,1746.5,1746.4,6.22050878]
[1745359857387,9.94104733,1746.5,1746.4,6.22050878]
[1745359857589,0.10926733,1746.5,1746.4,6.22050878]
[1745359857892,0.00857314,1746.5,1746.4,12.36534878]
[1745359858185,8.948,1746.9,1746.4,19.50080878]
[1745359858186,12.1558,1746.9,1746.4,19.50080878]
[1745359858390,23.4977541,1746.9,1746.7,1.14464]
[1745359858591,11.3419541,1746.9,1746.8,7.19038]
[1745359858791,11.3419541,1746.9,1746.8,6.0458]
[1745359859293,11.3419541,1746.9,1746.8,12.3678]
[1745359859991,11.3419541,1746.9,1746.8,13.51238]
[1745359860195,11.3419541,1746.9,1746.8,12.3678]
[1745359860495,11.3419541,1746.9,1746.8,13.51238]
[1745359861485,0.00857314,1747.0,1746.8,12.3678]
[1745359861796,0.00857314,1747.0,1746.9,5.7575]
[1745359862095,0.00857314,1747.0,1746.9,12.0795]
[1745359862291,0.00857314,1747.0,1746.9,13.22401]
[1745359863396,0.00857314,1747.0,1746.9,18.22401]
[1745359863582,11.3419541,1747.5,1747.4,1.14419]
[1745359863891,8.911,1747.9,1747.6,1.14406]
[1745359864590,18.90325684,1748.0,1747.9,1.14386]
[1745359864903,17.55830684,1748.0,1747.9,1.14386]
[1745359865094,0.00857314,1748.1,1747.9,6.322]
[1745359865286,4.36014314,1748.1,1747.9,6.322]
[1745359865481,3.21637314,1748.1,1747.9,6.322]
[1745359865686,4.36011314,1748.1,1747.9,6.322]
[1745359865986,3.21637314,1748.1,1748.0,1.14379]
[1745359866194,0.00857314,1748.1,1748.0,1.14379]
[1745359866493,17.55830684,1748.3,1748.2,1.14366]
[1745359866697,17.55830684,1748.3,1748.2,4.35146]
[1745359866884,17.55830684,1748.3,1748.1,1.14369]
[1745359867194,17.55830684,1748.3,1748.2,1.14366]
[1745359867588,17.55830684,1748.3,1748.2,6.14366]
[1745359867782,16.38800684,1748.3,1748.2,17.31426]
[1745359867990,5.44e-06,1748.4,1748.3,1.1436]
[1745359868187,5.44e-06,1748.4,1748.3,4.3514]
[1745359868498,5.44e-06,1748.4,1748.3,9.3514]
[1745359868993,5.44e-06,1748.4,1748.3,4.3514]
[1745359869198,5.44e-06,1748.4,1748.3,10.6734]
[1745359869594,5.44e-06,1748.4,1748.3,15.6734]
[1745359870299,5.44e-06,1748.4,1748.3,7.4656]
[1745359870491,5.00000544,1748.4,1747.9,3.2078]
[1745359870798,5.00000544,1748.4,1747.1,5.72174]
[1745359870799,3.2078,1748.1,1747.2,3.2078]